Cogmind - Beta 16 @@@ ROGUE MODE // 2025.12.07 @ 21:37:05 Player: Mozco Result: Self-destructed Performance ------------- Evolutions (6) 3000 Regions Visited (22) 4400 Robots Destroyed (193) 965 Value Destroyed (7253) 7253 Prototype IDs (59) 1180 Alien Tech Used (0) 0 Bonus (9880) 9880 TOTAL SCORE: 26678 Bonus ------- High Alert Combat Kills 1206 Follower Combat Kills 3974 Entered Garrisons 1400 Used RIF Installer 3000 Aligned with FarCom 300 Cogmind --------- Core Integrity 852/1150 Matter 269/300 Energy 38/340 System Corruption 0% Temperature Cool (21) Movement Rolling (120) Ox2 Location -4/Garrison Parts ------- > --- POWER (2) -------- Particle Reactor > --- PROPULSION (2) --- Armored Huge Wheel > --- UTILITY (12) ----- Advanced Cooling System Huge Storage Unit Gravity Neutralizer Advanced Signal Interpreter Relay Coupler [NC] (8) Relay Coupler [Sentry] (25) > --- WEAPON (3) ------- Heavy Wave Gun Heavy Wave Gun > --- INVENTORY (25) --- Armored Huge Wheel Advanced Cryofiber Web Advanced Energy Well (500) Relay Coupler [NC] (24) Relay Coupler [Grunt] (26) Relay Coupler [Hunter] (21) Relay Coupler [Proto] (9) Relay Coupler [Proto] (9) Relay Coupler [Proto] (9) System Restoration Module Improved Trap Extractor (5/6 Armageddon) Trap Reconfigurator Advanced Field Recycling Unit (0) Supersonic Drone Bay (1/1) Heavy Wave Gun Heavy Wave Gun Helical Railgun Enhanced Hardcell Cannon Enhanced Hardcell Cannon Improved Plasma Cutter Peak State ------------ > --- POWER ------------ Particle Reactor Light Quantum Reactor > --- PROPULSION ------- Armored Huge Wheel > --- UTILITY ---------- Huge Storage Unit Improved Trap Scanner Relay Coupler [NC] Relay Coupler [Grunt] Army-in-a-Box > --- WEAPON ----------- Hypervelocity Railgun Enhanced Hardcell Cannon Remote Datajack > --- INVENTORY -------- Armored Huge Wheel Armored Huge Wheel Advanced Weight Redist. System Experimental Sensor Array Medium Reflective Plating Improved Force Field Relay Coupler [Swarmer] Relay Coupler [Grunt] Relay Coupler [Sentry] Relay Coupler [Hunter] Relay Coupler [Heavy] Relay Coupler [Proto] Relay Coupler [Proto] Relay Coupler [Proto] System Restoration Module Improved Trap Extractor Trap Reconfigurator Supersonic Drone Bay Helical Railgun Enhanced Hardcell Cannon Remote Datajack Improved Plasma Cutter [Rating: 124] Favorites ----------- Power Heavy Ion Engine Engine Heavy Ion Engine Power Core Enhanced Fission Core Reactor Light Quantum Reactor Propulsion Armored Huge Wheel Wheel Armored Huge Wheel Utility Huge Storage Unit Device Advanced Weight Redist. System Storage Huge Storage Unit Processor Visual Processing Unit Hackware Relay Coupler [NC] Protection Hardened Medium Armor Plating Weapon Remote Datajack Energy Gun Advanced Beam Rifle Energy Cannon Plasma Cannon Ballistic Gun Hypervelocity Railgun Ballistic Cannon Heavy Mass Driver Launcher EMP Blaster Special Weapon Remote Datajack Special Melee Weapon Datajack Build | -11 -10 -10 -9 -9 -9 -8 -8 -8 -8 -8 -7 -7 -6 -6 -5 -5 -5 -5 -5 -5 -4 -4 ------- Run | Yrd Mat Min Mat Min Exi Min Mat Gar Mat Gar Fac Gar Fac Gar Fac Was Fac Gar Fac Gar Fac Gar Slots Evolved 12 | . . . 2 . . . 2 . . . 2 . 2 . 2 . . . . . 2 . Power 1 | . . . . . . . . . . . . . . . 1 . . . . . . . Propulsion . | . . . . . . . . . . . . . . . . . . . . . . . Utility 10 | . . . 2 . . . 2 . . . 2 . 1 . 1 . . . . . 2 . Weapon 1 | . . . . . . . . . . . . . 1 . . . . . . . . . Parts Attached 140 | 6 8 10 25 . 3 . 16 7 3 2 17 5 . 4 3 2 1 11 3 7 5 2 Power 17 | 1 2 1 6 . . . . . 1 1 . . . . . 1 . 3 1 . . . Engine 11 | 1 2 1 5 . . . . . 1 1 . . . . . . . . . . . . Core 3 | . . . 1 . . . . . . . . . . . . 1 . . 1 . . . Reactor 3 | . . . . . . . . . . . . . . . . . . 3 . . . . Propulsion 22 | 2 2 3 7 . . . 2 3 . . 1 . . . . . . . 1 . . 1 Treads . | . . . . . . . . . . . . . . . . . . . . . . . Leg . | . . . . . . . . . . . . . . . . . . . . . . . Wheel 22 | 2 2 3 7 . . . 2 3 . . 1 . . . . . . . 1 . . 1 Hover . | . . . . . . . . . . . . . . . . . . . . . . . Flight . | . . . . . . . . . . . . . . . . . . . . . . . Utility 53 | 1 2 1 6 . 1 . 8 2 2 1 8 2 . 4 2 1 . 5 1 3 3 . Device 24 | . 1 1 2 . 1 . 2 2 1 . 5 1 . 3 1 . . 2 . 1 1 . Storage 3 | 1 1 . . . . . . . . . . . . . . . . . . . 1 . Processor 4 | . . . 1 . . . . . 1 . . . . . 1 . . . . . 1 . Hackware 13 | . . . 2 . . . 2 . . . 1 . . 1 . 1 . 3 1 2 . . Protection 9 | . . . 1 . . . 4 . . 1 2 1 . . . . . . . . . . Artifact . | . . . . . . . . . . . . . . . . . . . . . . . Weapon 48 | 2 2 5 6 . 2 . 6 2 . . 8 3 . . 1 . 1 3 . 4 2 1 Energy Gun 17 | 2 1 1 2 . 1 . 4 1 . . 3 . . . . . . . . . 2 . Energy Cannon 4 | . . . . . . . . . . . 3 1 . . . . . . . . . . Ballistic Gun 11 | . . 1 3 . . . . 1 . . 1 . . . . . 1 1 . 3 . . Ballistic Cannon 5 | . . 2 . . . . . . . . . 1 . . . . . 2 . . . . Launcher 5 | . 1 1 1 . . . 2 . . . . . . . . . . . . . . . Special Weapon 5 | . . . . . . . . . . . 1 1 . . 1 . . . . 1 . 1 Impact Weapon . | . . . . . . . . . . . . . . . . . . . . . . . Slashing Weapon . | . . . . . . . . . . . . . . . . . . . . . . . Piercing Weapon . | . . . . . . . . . . . . . . . . . . . . . . . Special Melee Weapon 1 | . . . . . 1 . . . . . . . . . . . . . . . . . Unidentified Prototypes 13 | . . . 2 . . . 3 . . . 3 . . 1 1 . . . 1 . 2 . Corrupted Parts 1 | . . 1 . . . . . . . . . . . . . . . . . . . . System Corruption 1 | . . 1 . . . . . . . . . . . . . . . . . . . . Parts Lost 45 | . 1 7 16 . . . 2 1 1 2 2 . . . . . . 2 . 2 . 9 Power 6 | . 1 1 2 . . . . . . . . . . . . . . . . . . 2 Propulsion 13 | . . 4 5 . . . 1 1 . . 1 . . . . . . . . . . 1 Utility 12 | . . . 2 . . . 1 . 1 1 1 . . . . . . 1 . 1 . 4 Weapon 14 | . . 2 7 . . . . . . 1 . . . . . . . 1 . 1 . 2 Highest Loss Streak 10 | . 1 5 10 . . . 1 1 1 2 1 . . . . . . 2 . 1 . 9 To Critical Strikes . | . . . . . . . . . . . . . . . . . . . . . . . Average Backups 19 | 1 5 12 20 24 21 20 19 18 17 18 17 21 22 21 21 22 22 21 16 20 22 22 Power 1 | . 1 1 . 3 2 2 2 2 2 1 1 1 1 . . . . . . 1 1 . Propulsion 2 | . 1 1 2 4 4 4 3 2 2 2 2 2 2 2 2 2 2 2 2 2 2 1 Utility 9 | . . 1 7 8 7 7 6 6 5 6 8 14 14 14 15 15 15 15 10 11 12 13 Weapon 4 | . 3 7 8 7 6 6 6 7 7 6 4 2 3 3 3 3 3 2 1 3 5 5 Tool/Special . | . . . . . . . . . . . . . . . . . . . . . . . Unused Backups 41 | . . . 3 . 2 . 6 3 . 1 2 2 . 1 . . . 3 . 1 3 14 Power 3 | . . . 2 . . . . . . 1 . . . . . . . . . . . . Propulsion 3 | . . . 1 . . . . 1 . . . . . . . . . . . . . 1 Utility 20 | . . . . . 2 . 1 1 . . 1 2 . 1 . . . 2 . . 1 9 Weapon 14 | . . . . . . . 5 1 . . 1 . . . . . . 1 . . 2 4 Tool/Special 1 | . . . . . . . . . . . . . . . . . . . . 1 . . Average Slot Usage (%) 80 | . 90 94 88 100 100 100 97 96 88 83 85 55 40 47 47 55 58 64 94 92 89 86 Engine 6 | . 13 13 8 11 11 11 8 9 9 9 7 7 6 6 5 6 5 . . . . . Core 1 | . . . 2 . . . . . . . . . . . . 2 5 . 4 4 5 4 Reactor 1 | . . . . . . . . . . . . . . . . . . 10 5 4 5 4 Wheel 11 | . 28 25 19 22 22 22 18 14 9 9 7 7 6 6 5 5 5 5 5 5 5 4 Device 17 | . 5 13 16 22 22 22 18 22 27 27 30 17 13 13 5 5 5 8 21 21 24 21 Storage 7 | . 14 14 11 11 11 11 9 9 9 9 7 7 6 6 5 5 5 5 5 5 5 5 Processor 2 | . . . 7 11 11 11 6 . . . . . . . . 5 5 3 . . 3 5 Hackware 6 | . . . . . . . . . . . 6 1 . 2 5 10 11 11 24 28 26 24 Protection 5 | . . . 1 . . . 17 22 16 11 8 1 . 1 5 . . . 5 . . . Energy Gun 6 | . 25 9 13 . 3 11 16 10 9 9 3 . . . . . . . . . 1 10 Ballistic Gun 4 | . . 8 7 22 12 11 1 5 9 2 1 . . . . . . 4 5 8 8 . Ballistic Cannon 1 | . . 2 . . . . . . . . . 2 6 6 5 5 5 5 5 1 . . Launcher 1 | . 2 5 . . . . . 1 . 6 . . . . . . . . . . . . Special Weapon 1 | . . . . . . . . . . . 3 . . 2 5 5 5 4 5 5 5 3 Peak Build Rating 124 | 6 8 8 20 21 28 28 44 49 50 49 59 93 93 103 108 105 105 124 95 101 115 115 Average Rating 62 | 4 6 7 15 20 24 28 38 42 48 47 54 85 93 97 101 102 104 108 94 95 105 105 On Entrance 59 | . 6 8 7 20 21 28 28 40 49 49 47 58 93 93 101 103 105 105 95 94 96 115 Avg Prop Armor Cover (%) . | . . . . . . . . . . . . . . . . . . . . . . . Naked Turns . | . . . . . . . . . . . . . . . . . . . . . . . Heaviest Build 219 | 12 92 93 96 93 95 95 114 114 111 117 119 192 192 199 198 198 198 219 161 149 141 141 Greatest Support 40 | 26 26 26 31 31 31 31 31 37 37 37 37 37 28 28 28 28 28 40 40 40 40 40 Greatest Overweight (x) 9 | . 3 9 7 2 3 3 3 5 2 3 5 6 6 7 7 7 7 7 4 4 3 3 Average Overweight (x) 3 | . . 4 3 2 2 3 3 2 2 2 2 5 6 6 7 6 6 6 3 3 3 3 Largest Inventory Capacity 25 | 8 25 25 25 25 25 25 25 25 25 25 25 25 25 25 25 25 25 25 25 25 25 25 Average Capacity 24 | 7 12 25 25 25 25 25 25 25 25 25 25 25 25 25 25 25 25 25 25 25 25 25 Most Carried 25 | 2 11 14 25 25 25 25 25 25 25 25 25 25 25 25 25 25 25 25 19 25 25 25 Average Carried 22 | 1 5 12 20 24 24 25 24 24 24 24 24 24 25 24 24 25 25 23 18 22 24 24 Final Capacity 25 | 8 25 25 25 25 25 25 25 25 25 25 25 25 25 25 25 25 25 25 25 25 25 25 Final Carried 25 | 2 11 13 24 25 25 25 25 25 25 25 25 25 25 25 25 25 25 17 19 25 25 21 Class Distribution -------------------- 34% | Mutant 21% | Scavenger-Mutant 13% | Botlord-Tank 9% | Bothacker-Mutant 9% | Bothacker-Skirmisher 4% | Botlord-Skirmisher 4% | Bothacker-Tank Dominant Class ---------------- Mutant | -10/Materials Mutant | -10/Mines Scavenger-Mutant | -9/Materials Scavenger-Mutant | -9/Mines Scavenger-Mutant | -9/Exiles Mutant | -8/Mines Mutant | -8/Materials Mutant | -8/Garrison Mutant | -8/Materials Scavenger-Mutant | -8/Garrison Mutant | -7/Factory Bothacker-Mutant | -7/Garrison Bothacker-Mutant | -6/Factory Bothacker-Mutant | -6/Garrison Bothacker-Tank | -5/Factory Bothacker-Skirmisher | -5/Waste Bothacker-Skirmisher | -5/Factory Bothacker-Skirmisher | -5/Garrison Botlord-Tank | -5/Factory Botlord-Tank | -5/Garrison Botlord-Skirmisher | -4/Factory Botlord-Skirmisher | -4/Garrison Resources | -11 -10 -10 -9 -9 -9 -8 -8 -8 -8 -8 -7 -7 -6 -6 -5 -5 -5 -5 -5 -5 -4 -4 ----------- Run | Yrd Mat Min Mat Min Exi Min Mat Gar Mat Gar Fac Gar Fac Gar Fac Was Fac Gar Fac Gar Fac Gar Matter Collected 5495 | 202 199 212 672 10 . . 547 547 109 249 163 268 . 420 33 113 . 631 22 947 140 11 Remotely . | . . . . . . . . . . . . . . . . . . . . . . . Salvage Created 8037 | . 349 235 1371 . . . 1321 1200 247 733 428 220 . 226 106 . . 760 . 465 276 100 Parts 402 | . 22 19 95 . . . 77 42 8 25 18 9 . 4 4 . . 38 . 23 11 7 Haulers Intercepted 8 | . . . 4 . . . 2 . 1 . . . . . 1 . . . . . . . Recyclers Shooed 9 | . 1 1 5 . . . . . 1 . 1 . . . . . . . . . . . Parts Field Recycled . | . . . . . . . . . . . . . . . . . . . . . . . Retrieved Matter . | . . . . . . . . . . . . . . . . . . . . . . . Parts Self-Destructed . | . . . . . . . . . . . . . . . . . . . . . . . Prevented . | . . . . . . . . . . . . . . . . . . . . . . . Parts Restored . | . . . . . . . . . . . . . . . . . . . . . . . Kills | -11 -10 -10 -9 -9 -9 -8 -8 -8 -8 -8 -7 -7 -6 -6 -5 -5 -5 -5 -5 -5 -4 -4 ------- Run | Yrd Mat Min Mat Min Exi Min Mat Gar Mat Gar Fac Gar Fac Gar Fac Was Fac Gar Fac Gar Fac Gar Combat Hostiles Destroyed 149 | . 9 11 23 . . . 30 18 2 15 9 5 . 5 . . . 5 . 10 3 4 Melee 1 | . . . . . . . . . . . . . . . . . . . . 1 . . Guns 77 | . 2 7 19 . . . 13 10 2 10 3 . . . . . . . . 7 3 1 Cannons 24 | . . 1 . . . . . . . . 6 5 . 5 . . . 5 . 2 . . AOE 46 | . 7 3 4 . . . 17 8 . 5 . . . . . . . . . . . 2 Classes Destroyed 18 | . 5 2 3 . . . . 2 . 1 . . . . . . . 2 . 2 1 . Worker 10 | . . . 5 . . . 5 . . . . . . . . . . . . . . . Builder 2 | . 1 . 1 . . . . . . . . . . . . . . . . . . . Tunneler 3 | . . 2 1 . . . . . . . . . . . . . . . . . . . Hauler 8 | . . . 4 . . . 2 . 1 . . . . . 1 . . . . . . . Recycler 7 | . 2 . 2 . . . 2 . 1 . . . . . . . . . . . . . Mechanic 1 | . . . . . . . . . . . . . . . . . . . . . 1 . Operator 5 | . . . 2 . . . 2 . 1 . . . . . . . . . . . . . Drone 1 | . . . . . . . . . . . . . . . . . . 1 . . . . Watcher 7 | . 1 . 2 . . . 4 . . . . . . . . . . . . . . . Swarmer 45 | . 3 9 7 . . . 11 4 . 2 2 . . . . . . . . 4 . 3 Cutter 5 | . . . . . . . . . . . . . . . . . . 4 . 1 . . Saboteur 1 | . . . . . . . . . . . . . . . . . . . . 1 . . Grunt 63 | . 6 . 10 . . . 15 10 2 9 2 1 . 3 . . . 1 . 1 3 . Brawler 1 | . . . . . . . . 1 . . . . . . . . . . . . . . Sentry 19 | . . 2 6 . . . 4 1 . . 2 1 . 2 . . . . . 1 . . Hunter 8 | . . . . . . . . 3 . 3 1 . . . . . . . . . . 1 Programmer 7 | . . . . . . . . . . 1 2 3 . . . . . . . 1 . . Behemoth 1 | . . . . . . . . . . . . . . . . . . . . 1 . . Best Kill Streak 9 | . 7 3 6 . . . 9 5 3 3 3 3 . 2 1 . . 3 . 3 4 4 Combat Bots Only 7 | . 6 3 6 . . . 7 5 2 3 3 3 . 2 . . . 3 . 3 3 4 Max Kills in Single Turn 5 | . 3 1 2 . . . 5 3 1 2 1 1 . 1 1 . . 1 . 1 1 1 Gunslinging 1 | . . . 1 . . . 1 . . 1 . . . . . . . . . . . . Exploded 5 | . 3 1 2 . . . 5 3 . 2 . . . . . . . . . . . 1 Melee 1 | . . . . . . . . . . . . . . . . . . . . 1 . . Uniques/NPCs Destroyed . | . . . . . . . . . . . . . . . . . . . . . . . Combat | -11 -10 -10 -9 -9 -9 -8 -8 -8 -8 -8 -7 -7 -6 -6 -5 -5 -5 -5 -5 -5 -4 -4 -------- Run | Yrd Mat Min Mat Min Exi Min Mat Gar Mat Gar Fac Gar Fac Gar Fac Was Fac Gar Fac Gar Fac Gar Hostile Shots Fired 911 | . 47 68 152 . . . 89 55 6 59 119 32 . 45 . . 4 34 7 70 6 118 Missed 287 | . 15 23 45 . . . 36 13 1 23 38 10 . 12 . . . 6 4 16 . 45 Hits 624 | . 32 45 107 . . . 53 42 5 36 81 22 . 33 . . 4 28 3 54 6 73 Melee 23 | . . . . . . . . . . . . . . . . . . 13 . 10 . . Projectile 601 | . 32 45 107 . . . 53 42 5 36 81 22 . 33 . . 4 15 3 44 6 73 AOE 5 | . . . . . . . . . . . . . . . . . . 4 . 1 . . Critical Strikes 24 | . 1 1 2 . . . 6 . 1 1 . 1 . . . . . 4 . 5 . 2 Damage Taken 8602 | . 381 598 1281 . . . 788 624 74 506 804 244 . 423 . 204 109 689 45 861 69 902 Core 1475 | . 90 138 279 . . . 130 76 . 88 96 11 . 16 . . . 118 17 118 9 289 Absorbed by Shields 937 | . . . . . . . . . . . . 59 . 117 . . . 105 . 247 74 335 Ignored by Resistances 82 | . . . . . . . . 6 . 9 . 12 . 37 . . . . . 18 . . Regen/Repaired (Parts) 380 | . . . 107 . . . 43 . . . . . . . . 9 27 . 114 80 . . Core Remaining (%) 62 | 100 . 8 . . . 30 . . . 46 . 84 . 98 . . . . . 74 . . Volleys Fired 762 | 7 23 42 121 . . . 98 126 16 64 44 15 . 33 1 11 1 56 2 71 12 19 Largest 2 | 2 2 2 2 . . . 2 2 2 2 2 2 . 1 1 1 1 2 1 2 2 2 Hottest 176 | 100 100 80 106 . . . 116 122 89 116 160 160 . 65 65 65 5 98 5 98 66 176 Shots Fired 1224 | 14 42 70 231 . . . 173 186 32 92 75 25 . 33 1 11 1 72 2 112 20 32 Gun 965 | 14 38 53 228 . . . 153 170 32 82 35 . . . . . . 45 . 73 16 26 Cannon 160 | . . 13 . . . . 2 . . . 38 25 . 29 1 3 . 23 . 26 . . Launcher 55 | . 4 4 3 . . . 18 16 . 10 . . . . . . . . . . . . Special 44 | . . . . . . . . . . . 2 . . 4 . 8 1 4 2 13 4 6 Kinetic 476 | . . 34 98 . . . 17 61 16 21 10 3 . 29 1 3 . 68 . 99 16 . Thermal 528 | 14 38 27 99 . . . 78 109 16 53 46 22 . . . . . . . . . 26 Explosive 31 | . 4 4 3 . . . 16 1 . 3 . . . . . . . . . . . . Electromagnetic 145 | . . 5 31 . . . 62 15 . 15 17 . . . . . . . . . . . Robot Hit Streak 31 | 2 8 16 11 . . . 8 31 8 12 13 7 . 3 2 5 2 11 13 13 4 5 Robot Miss Streak 7 | 2 3 5 4 . . . 3 6 2 4 3 2 . 2 . 2 . 4 . 6 3 7 Penetration Max 2 | . . . . . . . . . 1 . . . . . . . . 1 . 2 1 . Secondary Targets 13 | . . 1 3 . . . 2 2 . 2 . . . . . . . . . 2 . 1 Max Gunslinging Chain 1 | . . 1 1 . . . 1 1 . 1 . . . . . . . . . 1 . 1 Shots Hit Robots 747 | 7 26 41 141 . 4 . 103 122 21 53 49 18 . 20 1 7 1 44 2 61 10 16 Core Hits 343 | . 17 17 58 . . . 80 47 7 29 18 7 . 4 1 . . 27 . 22 6 3 Critical Kills 12 | . . . . . . . . . . 1 . . . . . . . 7 . 4 . . Critical Parts Destroyed 18 | . . . 1 . . . . 1 . . . . . . . . . 8 . 8 . . Critical Strikes 64 | . 6 3 7 . . . 3 8 1 2 . . . 2 . . . 17 . 14 . 1 Burn 27 | . 6 2 6 . . . 3 7 1 1 . . . . . . . . . . . 1 Destroy 31 | . . . 1 . . . . 1 . 1 . . . . . . . 15 . 13 . . Blast 6 | . . 1 . . . . . . . . . . . 2 . . . 2 . 1 . . Melee Attacks 4 | . . . . . 4 . . . . . . . . . . . . . . . . . Impact . | . . . . . . . . . . . . . . . . . . . . . . . Slashing . | . . . . . . . . . . . . . . . . . . . . . . . Piercing . | . . . . . . . . . . . . . . . . . . . . . . . Sneak Attacks 4 | . . . . . 4 . . . . . . . . . . . . . . . . . Combat Hostiles . | . . . . . . . . . . . . . . . . . . . . . . . Follow-up Attacks . | . . . . . . . . . . . . . . . . . . . . . . . Damage Inflicted 18057 | 90 822 780 2157 . . . 3247 2755 500 1481 1172 643 . 1228 65 213 . 887 . 1342 238 437 Guns 10133 | 90 380 352 1906 . . . 1755 2030 500 1011 373 . . . . . . 345 . 716 238 437 Cannons 4231 | . . 148 . . . . 38 . . . 728 643 . 1228 65 213 . 542 . 626 . . Explosions 3693 | . 442 280 251 . . . 1454 725 . 470 71 . . . . . . . . . . . Melee . | . . . . . . . . . . . . . . . . . . . . . . . Ramming . | . . . . . . . . . . . . . . . . . . . . . . . Kinetic 6577 | . . 235 847 . . . 154 630 278 228 95 137 . 1228 65 213 . 887 . 1342 238 . Thermal 6772 | 90 380 266 806 . . . 920 1400 222 846 899 506 . . . . . . . . . 437 Explosive 2356 | . 442 239 251 . . . 1143 203 . 78 . . . . . . . . . . . . Electromagnetic 2352 | . . 40 253 . . . 1030 522 . 329 178 . . . . . . . . . . . Impact . | . . . . . . . . . . . . . . . . . . . . . . . Slashing . | . . . . . . . . . . . . . . . . . . . . . . . Piercing . | . . . . . . . . . . . . . . . . . . . . . . . Highest Corruption 2 | . . 1 . . . . . 1 1 1 1 2 . . . . . . . 1 . . Average Corruption 1 | . . 1 . . . . . 1 1 1 1 1 . . . . . . . 1 . . Corruption Purged . | . . . . . . . . . . . . . . . . . . . . . . . Corruption Blocked . | . . . . . . . . . . . . . . . . . . . . . . . Effects 45 | . . . . . . . . 5 4 10 3 14 . . . . . . . 9 . . Message Errors 9 | . . . . . . . . 1 2 3 . 2 . . . . . . . 1 . . Matter Fused 13 | . . . . . . . . . 2 1 2 5 . . . . . . . 3 . . Heat Flow Errors 4 | . . . . . . . . . . 3 . 1 . . . . . . . . . . Energy Discharges 7 | . . . . . . . . 1 . . 1 4 . . . . . . . 1 . . Parts Rejected 1 | . . . . . . . . . . 1 . . . . . . . . . . . . Data Loss (minor) 7 | . . . . . . . . 2 . 2 . 1 . . . . . . . 2 . . Data Loss (major) 2 | . . . . . . . . 1 . . . . . . . . . . . 1 . . Misfires 1 | . . . . . . . . . . . . 1 . . . . . . . . . . Weapon Failures 1 | . . . . . . . . . . . . . . . . . . . . 1 . . Overload Shots . | . . . . . . . . . . . . . . . . . . . . . . . Overflow Damage 166 | . 29 18 . . . . 14 10 . . 22 16 . 52 . . . 5 . . . . Projectiles 95 | . . . . . . . . . . . 22 16 . 52 . . . 5 . . . . Explosions 71 | . 29 18 . . . . 14 10 . . . . . . . . . . . . . . Melee . | . . . . . . . . . . . . . . . . . . . . . . . Knockbacks 9 | . . . . . . . . . . . . . . 7 . . . . . 2 . . Impact . | . . . . . . . . . . . . . . . . . . . . . . . Kinetic 9 | . . . . . . . . . . . . . . 7 . . . . . 2 . . Secondary . | . . . . . . . . . . . . . . . . . . . . . . . Self-Inflicted Damage 240 | . 59 26 . . . . 93 19 . . 43 . . . . . . . . . . . Shots 11 | . 2 1 . . . . 4 3 . . 1 . . . . . . . . . . . Rammed . | . . . . . . . . . . . . . . . . . . . . . . . Targets Rammed . | . . . . . . . . . . . . . . . . . . . . . . . Kicked . | . . . . . . . . . . . . . . . . . . . . . . . Crushed . | . . . . . . . . . . . . . . . . . . . . . . . Highest Temperature 447 | 117 323 187 261 . . . 324 447 23 216 84 167 . 22 . . . 120 . 189 . 168 Average Temperature 94 | 51 139 82 61 . . . 106 140 13 47 26 40 . 8 . . . 34 . 56 . 66 Received Heat Transfer 2533 | . 150 144 564 . . . 405 288 63 216 129 85 . 146 . . 36 49 . 103 8 147 Effects 12 | . 1 . 3 . . . . 8 . . . . . . . . . . . . . . Energy Bleed 4 | . 1 . . . . . . 3 . . . . . . . . . . . . . . Interference 5 | . . . 3 . . . . 2 . . . . . . . . . . . . . . Matter Decay 2 | . . . . . . . . 2 . . . . . . . . . . . . . . Short Circuit 1 | . . . . . . . . 1 . . . . . . . . . . . . . . Siege Activations . | . . . . . . . . . . . . . . . . . . . . . . . Martial Activations . | . . . . . . . . . . . . . . . . . . . . . . . Shielding Activations . | . . . . . . . . . . . . . . . . . . . . . . . Robots Disrupted . | . . . . . . . . . . . . . . . . . . . . . . . Combat Hostiles . | . . . . . . . . . . . . . . . . . . . . . . . Robots Corrupted 1 | . . . . . . . 1 . . . . . . . . . . . . . . . Combat Hostiles . | . . . . . . . . . . . . . . . . . . . . . . . Parts Fried 5 | . . . . . . . 4 . . 1 . . . . . . . . . . . . Impact Corruptions . | . . . . . . . . . . . . . . . . . . . . . . . Robots Melted 3 | . 1 . . . . . . 1 . . . . . . . . . . . . . 1 Combat Hostiles 1 | . . . . . . . . . . . . . . . . . . . . . . 1 Parts Melted 28 | . 2 3 8 . . . 3 3 . 2 3 3 . . . . . . . . . 1 Heat Transferred 15196 | 259 1554 814 2631 . . . 1926 3108 481 1419 1475 900 . . . . . . . . . 629 Parts Sabotaged 8 | . . . . . . . . . . . . . . . . . . . . 8 . . Parts Stolen . | . . . . . . . . . . . . . . . . . . . . . . . Parts Stripped . | . . . . . . . . . . . . . . . . . . . . . . . Power Chain Reactions 6 | . . 1 . . . . 3 . . 1 1 . . . . . . . . . . . Alert | -11 -10 -10 -9 -9 -9 -8 -8 -8 -8 -8 -7 -7 -6 -6 -5 -5 -5 -5 -5 -5 -4 -4 ------- Run | Yrd Mat Min Mat Min Exi Min Mat Gar Mat Gar Fac Gar Fac Gar Fac Was Fac Gar Fac Gar Fac Gar Maximum Alert Level 4 | . 1 . . . . . 2 3 2 4 2 4 3 3 2 . 1 4 2 4 2 1 Low Security (%) 30 | 100 95 100 100 100 . 100 64 . . . . . . . . 100 94 1 . . . . Level 1 7 | . 4 . . . . . 17 2 . . . 12 . . 50 . 5 13 . . . 100 Level 2 23 | . . . . . . . 18 21 100 23 100 14 42 16 49 . . 10 100 14 100 . Level 3 29 | . . . . . . . . 76 . 73 . 23 57 83 . . . 43 . 72 . . Level 4 8 | . . . . . . . . . . 2 . 49 . . . . . 31 . 12 . . Level 5 . | . . . . . . . . . . . . . . . . . . . . . . . High Security . | . . . . . . . . . . . . . . . . . . . . . . . Max Security . | . . . . . . . . . . . . . . . . . . . . . . . Peak Influence 1372 | . 205 96 192 71 . . 586 1054 678 1126 620 1372 720 925 474 119 232 1246 653 1212 636 390 Initial 720 | . . 46 1 71 . . . 373 513 434 590 301 720 469 474 119 . 155 653 409 636 379 Average 553 | . 115 34 61 36 . . 219 800 581 840 527 957 698 797 402 27 50 921 597 902 590 379 Influence Increases 9591 | . 278 281 776 . . . 1209 711 285 752 274 1151 . 636 26 116 302 1481 92 1033 86 102 Destroy 0b10 Robot/C 4770 | . 180 220 460 . . . 680 460 120 400 180 540 . 255 . . 75 600 30 465 45 60 Destroy 0b10 Robot/NC 315 | . 20 10 85 . . . 75 25 30 10 . . . . 4 . . 32 4 4 16 . Destroy Leader 724 | . 42 30 132 . . . 152 40 36 30 60 30 . 32 2 . 24 40 8 48 2 16 Allied During Kill 1548 | . . . . . . . 32 32 37 20 . 445 . 241 . . 99 500 13 120 6 3 Trap Triggered on 0b10 8 | . . . . . . . . . . . . . . . . . . . . 8 . . Successful Hack 172 | . 15 . . . . . 30 14 . . 15 14 . 22 20 . . . 13 11 7 11 Select Force Hacks 30 | . . . . . . . . . 30 . . . . . . . . . . . . . Disable Machine 477 | . . . 60 . . . 105 60 30 60 . 30 . 12 . . 36 48 . 36 . . Anti-Garrison Action 502 | . . . . . . . . . . 150 . 50 . . . . . 113 . 189 . . Destroy Structure 769 | . 21 21 24 . . . 120 50 2 67 4 12 . 14 . 116 68 136 24 80 10 . Partial Spotted 12 | . . . . . . . . . . . . . . . . . . 12 . . . . Lose Combat Pursuer 264 | . . . 15 . . . 15 30 . 15 15 30 . 60 . . . . . 72 . 12 Influence Decreases 9240 | . 158 395 598 183 1 . 635 231 671 294 970 209 702 401 591 456 80 457 753 406 756 293 Entered New Map 4914 | . . 74 5 113 1 . . 201 541 234 536 129 652 201 431 221 . 67 593 176 576 163 Time Decay 2761 | . 148 281 438 70 . . 555 . 100 . 404 . 50 . 160 195 80 . 160 . 120 . Lost Part 415 | . 10 40 155 . . . 20 10 10 20 20 . . . . . . 20 . 20 . 90 Lost Ally 1150 | . . . . . . . 60 20 20 40 10 80 . 200 . 40 . 370 . 210 60 40 Squads Dispatched 22 | . 3 . 3 . . . 5 . 3 . 4 . . . . . 2 . 1 . 1 . Investigation 6 | . 2 . 1 . . . 2 . 1 . . . . . . . . . . . . . Extermination 3 | . . . . . . . . . . . 2 . . . . . . . 1 . . . Reinforcement 10 | . 1 . 2 . . . 3 . 2 . 1 . . . . . 1 . . . . . Assault . | . . . . . . . . . . . . . . . . . . . . . . . Garrison 3 | . . . . . . . . . . . 1 . . . . . 1 . . . 1 . Intercept . | . . . . . . . . . . . . . . . . . . . . . . . Searches Triggered . | . . . . . . . . . . . . . . . . . . . . . . . Construction Impeded . | . . . . . . . . . . . . . . . . . . . . . . . Haulers Reinforced . | . . . . . . . . . . . . . . . . . . . . . . . Active Scanning Responses . | . . . . . . . . . . . . . . . . . . . . . . . Cargo Convoy Interrupts . | . . . . . . . . . . . . . . . . . . . . . . . Stealth | -11 -10 -10 -9 -9 -9 -8 -8 -8 -8 -8 -7 -7 -6 -6 -5 -5 -5 -5 -5 -5 -4 -4 --------- Run | Yrd Mat Min Mat Min Exi Min Mat Gar Mat Gar Fac Gar Fac Gar Fac Was Fac Gar Fac Gar Fac Gar Distress Signals 12 | . 1 . 3 . . . 3 . . . 1 . . . 1 . 1 1 . . 1 . Communications Jammed . | . . . . . . . . . . . . . . . . . . . . . . . Distress Signals . | . . . . . . . . . . . . . . . . . . . . . . . Times Spotted 330 | . 13 12 33 . . . 51 23 9 21 17 21 . 22 1 6 8 30 2 43 7 11 Peak Tracking Total 8 | . 8 3 5 . . . 6 3 3 7 5 4 . 7 2 2 3 6 1 8 5 8 Tactical Retreats 17 | . . 1 1 . . . 1 2 . 1 1 1 . 4 . . . . . 4 . 1 ECM-based Alert Blocks 1 | . . 1 . . . . . . . . . . . . . . . . . . . . Traps | -11 -10 -10 -9 -9 -9 -8 -8 -8 -8 -8 -7 -7 -6 -6 -5 -5 -5 -5 -5 -5 -4 -4 ------- Run | Yrd Mat Min Mat Min Exi Min Mat Gar Mat Gar Fac Gar Fac Gar Fac Was Fac Gar Fac Gar Fac Gar Traps Triggered 21 | . . . . . . . 1 4 . 2 . 4 . 3 1 . . 2 . 4 . . Indirectly . | . . . . . . . . . . . . . . . . . . . . . . . Trap Hack Attempts . | . . . . . . . . . . . . . . . . . . . . . . . Triggered . | . . . . . . . . . . . . . . . . . . . . . . . Disarmed . | . . . . . . . . . . . . . . . . . . . . . . . Reprogrammed . | . . . . . . . . . . . . . . . . . . . . . . . Reused 1 | . . . . . . . . . . . . . . . . . . . . 1 . . Traps Reconfigurated 2 | . . . . . . . 2 . . . . . . . . . . . . . . . Traps Extracted . | . . . . . . . . . . . . . . . . . . . . . . . Installed 1 | . . . . . . . . . . . . . . . . . . . . 1 . . Triggered 1 | . . . . . . . . . . . . . . . . . . . . 1 . . Most Traps Carried 6 | . . . . . . . . 1 1 1 1 1 1 1 1 1 1 6 6 6 5 5 Machines | -11 -10 -10 -9 -9 -9 -8 -8 -8 -8 -8 -7 -7 -6 -6 -5 -5 -5 -5 -5 -5 -4 -4 ---------- Run | Yrd Mat Min Mat Min Exi Min Mat Gar Mat Gar Fac Gar Fac Gar Fac Was Fac Gar Fac Gar Fac Gar Machines Disabled 40 | . . . 4 . . . 7 4 2 5 . 2 . 2 . . 3 5 . 6 . . Max in Single Turn 2 | . . . 1 . . . 2 1 1 1 . 1 . 1 . . . 1 . 1 . . Garrison Relay 6 | . . . . . . . . . . 1 . . . 1 . . . 1 . 3 . . Machines Repaired . | . . . . . . . . . . . . . . . . . . . . . . . Machines Dismantled 2 | . . . . . . . . . . . . 1 . . . . . . . 1 . . Machines Sabotaged . | . . . . . . . . . . . . . . . . . . . . . . . Overloaded Fab Kills . | . . . . . . . . . . . . . . . . . . . . . . . Hacking | -11 -10 -10 -9 -9 -9 -8 -8 -8 -8 -8 -7 -7 -6 -6 -5 -5 -5 -5 -5 -5 -4 -4 --------- Run | Yrd Mat Min Mat Min Exi Min Mat Gar Mat Gar Fac Gar Fac Gar Fac Was Fac Gar Fac Gar Fac Gar Machines Accessed 56 | . 2 . 7 . 2 . 11 1 1 3 7 2 2 3 2 . 2 1 4 2 2 2 Terminals 36 | . 2 . 5 . . . 7 1 . 3 5 2 . 3 2 . . 1 1 2 . 2 Fabricators 1 | . . . . . . . . . . . . . 1 . . . . . . . . . Repair Stations 5 | . . . 1 . . . 2 . . . . . . . . . . . 2 . . . Recycling Units . | . . . . . . . . . . . . . . . . . . . . . . . Scanalyzers 5 | . . . 1 . . . 1 . . . 1 . . . . . 1 . . . 1 . Garrison Access 7 | . . . . . . . 1 . 1 . 1 . 1 . . . 1 . 1 . 1 . Total Hacks 133 | . 10 . 25 . 2 . 30 2 3 4 13 5 3 5 4 . 4 2 9 3 7 2 Successful 68 | . 3 . 14 . 2 . 17 1 3 1 4 1 2 2 2 . 3 . 5 1 5 2 Failed 62 | . 6 . 10 . . . 12 1 . 3 9 4 1 3 2 . 1 2 4 2 2 . Catastrophic 12 | . . . 3 . . . 2 . . 2 2 1 . . 1 . 1 . . . . . Database Lockouts 3 | . 1 . 1 . . . 1 . . . . . . . . . . . . . . . Manual 52 | . 11 . 12 . 1 . 13 . 1 . 8 . 1 . 2 . . . 3 . . . Terminals 81 | . 10 . 16 . . . 16 2 . 4 9 5 . 5 4 . . 2 3 3 . 2 Fabricators 2 | . . . . . . . . . . . . . 2 . . . . . . . . . Repair Stations 14 | . . . 4 . . . 5 . . . . . . . . . . . 5 . . . Recycling Units . | . . . . . . . . . . . . . . . . . . . . . . . Scanalyzers 23 | . . . 5 . . . 7 . . . 2 . . . . . 3 . . . 6 . Garrison Access 11 | . . . . . . . 2 . 3 . 2 . 1 . . . 1 . 1 . 1 . Terminal Hacks 18 | . 1 . 4 . 2 . 3 1 . 1 . 1 . 2 . . . . . 1 . 2 Record 1 | . . . . . 1 . . . . . . . . . . . . . . . . . Robot Analysis 2 | . 1 . 1 . . . . . . . . . . . . . . . . . . . Prototype ID Bank 1 | . . . . . . . 1 . . . . . . . . . . . . . . . Emergency Access Points 4 | . . . 1 . . . . . . 1 . . . . . . . . . 1 . 1 Terminal Index 1 | . . . . . . . 1 . . . . . . . . . . . . . . . Garrison Index 1 | . . . . . . . 1 . . . . . . . . . . . . . . . Transport Status 1 | . . . 1 . . . . . . . . . . . . . . . . . . . Hauler Manifests 1 | . . . 1 . . . . . . . . . . . . . . . . . . . Garrison Registry 3 | . . . . . . . . 1 . . . . . 1 . . . . . . . 1 Patrol Navigation 2 | . . . . . . . . . . . . 1 . 1 . . . . . . . . Proto ID Catalog 1 | . . . . . 1 . . . . . . . . . . . . . . . . . Fabricator Hacks 1 | . . . . . . . . . . . . . 1 . . . . . . . . . Network Status 1 | . . . . . . . . . . . . . 1 . . . . . . . . . Repair Station Hacks 10 | . . . 4 . . . 3 . . . . . . . . . . . 3 . . . Scan Component 6 | . . . 2 . . . 2 . . . . . . . . . . . 2 . . . Repair 4 | . . . 2 . . . 1 . . . . . . . . . . . 1 . . . Recycling Unit Hacks . | . . . . . . . . . . . . . . . . . . . . . . . Scanalyzer 18 | . . . 4 . . . 7 . . . 1 . . . . . 2 . . . 4 . Insert Component 6 | . . . 1 . . . 3 . . . . . . . . . 1 . . . 1 . Analyze 9 | . . . 2 . . . 3 . . . . . . . . . 1 . . . 3 . Retrieve Study 3 | . . . 1 . . . 1 . . . 1 . . . . . . . . . . . Garrison Access Hacks 9 | . . . . . . . 1 . 2 . 2 . 1 . . . 1 . 1 . 1 . Unlock Access 7 | . . . . . . . 1 . 1 . 1 . 1 . . . 1 . 1 . 1 . Coupler Status 2 | . . . . . . . . . 1 . 1 . . . . . . . . . . . Unauthorized Hacks 12 | . 2 . 2 . . . 3 . 1 . 1 . . . 2 . . . 1 . . . Terminals 11 | . 2 . 2 . . . 3 . . . 1 . . . 2 . . . 1 . . . Botnet 11 | . 2 . 2 . . . 3 . . . 1 . . . 2 . . . 1 . . . Fabricators . | . . . . . . . . . . . . . . . . . . . . . . . Repair Stations . | . . . . . . . . . . . . . . . . . . . . . . . Recycling Units . | . . . . . . . . . . . . . . . . . . . . . . . Scanalyzers . | . . . . . . . . . . . . . . . . . . . . . . . Garrison Access 1 | . . . . . . . . . 1 . . . . . . . . . . . . . Eject 1 | . . . . . . . . . 1 . . . . . . . . . . . . . Data Cores Recovered 2 | . . . 1 . . . . . . . . . . . . . . . 1 . . . Used 1 | . . . 1 . . . . . . . . . . . . . . . . . . . Hacking Detections 43 | . 2 . 5 . . . 10 1 . 3 6 2 2 2 2 . 1 1 3 2 1 . Full Trace Events 5 | . 2 . 1 . . . 1 . . . . 1 . . . . . . . . . . Feedback Events 1 | . . . . . . . 1 . . . . . . . . . . . . . . . Hackware Fried 1 | . . . . . . . 1 . . . . . . . . . . . . . . . Feedback Blocked . | . . . . . . . . . . . . . . . . . . . . . . . Robot Schematics Acquired . | . . . . . . . . . . . . . . . . . . . . . . . Robots Built . | . . . . . . . . . . . . . . . . . . . . . . . Authchips . | . . . . . . . . . . . . . . . . . . . . . . . Time . | . . . . . . . . . . . . . . . . . . . . . . . Total Robot Build Rating . | . . . . . . . . . . . . . . . . . . . . . . . Part Schematics Acquired 5 | . . . 1 . . . 3 . . . . . . . . . . . . . 1 . Parts Built . | . . . . . . . . . . . . . . . . . . . . . . . Authchips . | . . . . . . . . . . . . . . . . . . . . . . . Time . | . . . . . . . . . . . . . . . . . . . . . . . Total Part Build Rating . | . . . . . . . . . . . . . . . . . . . . . . . Part Studies Acquired 3 | . . . 1 . . . 1 . . . 1 . . . . . . . . . . . Parts Repaired 4 | . . . 2 . . . 1 . . . . . . . . . . . 1 . . . Time 211 | . . . 52 . . . 51 . . . . . . . . . . . 108 . . . Parts Recycled . | . . . . . . . . . . . . . . . . . . . . . . . Recycled Matter . | . . . . . . . . . . . . . . . . . . . . . . . Retrieved Matter . | . . . . . . . . . . . . . . . . . . . . . . . Retrieved Components . | . . . . . . . . . . . . . . . . . . . . . . . Parts Scanalyzed 6 | . . . 1 . . . 3 . . . . . . . . . 1 . . . 1 . Part Schematics Acquired 5 | . . . 1 . . . 3 . . . . . . . . . . . . . 1 . Parts Damaged 3 | . . . . . . . 1 . . . . . . . . . 1 . . . 1 . Bothacking | -11 -10 -10 -9 -9 -9 -8 -8 -8 -8 -8 -7 -7 -6 -6 -5 -5 -5 -5 -5 -5 -4 -4 ------------ Run | Yrd Mat Min Mat Min Exi Min Mat Gar Mat Gar Fac Gar Fac Gar Fac Was Fac Gar Fac Gar Fac Gar Used RIF Installer 6 | . . . . . . . . 1 . 2 . 1 . . . . . 1 . 1 . . Threat Obfuscator 1 | . . . . . . . . . . . . 1 . . . . . . . . . . Zone Cloak 1 | . . . . . . . . . . . . . . . . . . . . 1 . . Patrol Navigation 1 | . . . . . . . . . . 1 . . . . . . . . . . . . Structural Interface 1 | . . . . . . . . . . 1 . . . . . . . . . . . . Autooverride 1 | . . . . . . . . . . . . . . . . . . 1 . . . . Robots Hacked 34 | . . . . . 4 . . . . . 2 . . 3 . 6 1 2 2 6 3 5 Non-combat 7 | . . . . . 3 . . . . . 2 . . . . . . . 1 . 1 . Combat 27 | . . . . . 1 . . . . . . . . 3 . 6 1 2 1 6 2 5 Autooverrided 5 | . . . . . . . . . . . . . . . . . . 1 . 2 1 1 Robot Hacks Applied 29 | . . . . . 4 . . . . . 2 . . 3 . 6 1 1 2 4 2 4 parse_system 6 | . . . . . 4 . . . . . . . . 1 . . . . . . . 1 drop_inventory 2 | . . . . . . . . . . . 1 . . . . . . . . . 1 . ignore_targets 6 | . . . . . . . . . . . . . . . . 6 . . . . . . amplify_resonance 5 | . . . . . . . . . . . . . . 1 . . 1 1 . . . 2 reboot_system 1 | . . . . . . . . . . . . . . . . . . . . 1 . . overwrite_iff 5 | . . . . . . . . . . . . . . 1 . . . . . 2 1 1 formatsys_low 1 | . . . . . . . . . . . . . . . . . . . 1 . . . formatsys_high 3 | . . . . . . . . . . . 1 . . . . . . . 1 1 . . Relay Couplers Released 30 | . . . . . . . . . 4 5 . . . 4 . . . 4 . 13 . . Ejected 4 | . . . . . . . . . 4 . . . . . . . . . . . . . Machine Destruction 26 | . . . . . . . . . . 5 . . . 4 . . . 4 . 13 . . Attached 9 | . . . . . . . . . . . 1 . . 1 . 1 . 3 1 2 . . Fabnet Peak Effective % . | . . . . . . . . . . . . . . . . . . . . . . . Robots Rewired 10 | . . . . . . . . 5 . . . . . 1 . . . 2 . 2 . . Allies Hacked . | . . . . . . . . . . . . . . . . . . . . . . . Hacks Repelled . | . . . . . . . . . . . . . . . . . . . . . . . Allies | -11 -10 -10 -9 -9 -9 -8 -8 -8 -8 -8 -7 -7 -6 -6 -5 -5 -5 -5 -5 -5 -4 -4 -------- Run | Yrd Mat Min Mat Min Exi Min Mat Gar Mat Gar Fac Gar Fac Gar Fac Was Fac Gar Fac Gar Fac Gar Total Allies 51 | . . . . 3 . . . 5 . . 1 2 . 2 . 20 . 3 2 9 2 2 Largest Group 19 | . . . . 3 3 3 3 2 3 2 1 2 2 3 . 19 11 11 4 5 2 1 Highest-Rated Group 702 | . . . . 40 40 40 40 80 120 80 13 59 59 181 . 702 468 468 357 406 142 12 Highest-Rated Ally 142 | . . . . 16 16 16 16 40 40 40 13 39 39 119 . 50 50 116 142 142 80 12 Total Orders 25 | . . . . . . . . . . . 5 5 . 3 . . . 3 4 5 . . STAY 2 | . . . . . . . . . . . 1 . . . . . . . 1 . . . ROAM 2 | . . . . . . . . . . . . . . . . . . . . 2 . . FOLLOW 4 | . . . . . . . . . . . . 1 . . . . . . 1 2 . . AID 3 | . . . . . . . . . . . . . . . . . . . 2 1 . . EXPLORE 4 | . . . . . . . . . . . 2 1 . . . . . 1 . . . . RETURN 10 | . . . . . . . . . . . 2 3 . 3 . . . 2 . . . . Ally Attacks 841 | . . . . . . . 24 28 21 11 . 146 . 133 . 131 15 237 6 66 18 5 Total Damage 23110 | . . . . . . . 234 445 447 261 . 2161 . 2643 . 6190 448 6161 224 3192 609 95 Kills 142 | . . . . . . . 4 5 7 5 . 22 . 13 . 13 5 41 3 21 3 . Allies Corrupted 1 | . . . . . . . . . . . . . . . . . . 1 . . . . Allies Melted 1 | . . . . . . . . . . . . . . . . . . . . 1 . . Intel | -11 -10 -10 -9 -9 -9 -8 -8 -8 -8 -8 -7 -7 -6 -6 -5 -5 -5 -5 -5 -5 -4 -4 ------- Run | Yrd Mat Min Mat Min Exi Min Mat Gar Mat Gar Fac Gar Fac Gar Fac Was Fac Gar Fac Gar Fac Gar Active Infowar (turns) 10136 | . 147 751 951 158 485 31 1181 531 201 1230 349 . . . 48 589 224 1207 334 1323 247 149 Optics 2353 | . . . 498 158 485 31 1181 . . . . . . . . . . . . . . . Sensors 246 | . . . . . . . . . . . . . . . . . . . . . 150 96 Traps 4498 | . . . . . . . . 531 201 1230 349 . . . . . . 134 334 1323 247 149 Seismic 838 | . . 97 741 . . . . . . . . . . . . . . . . . . . T.N.C. 1936 | . . . . . . . . . 2 . . . . . 48 589 224 1073 . . . . ECM 801 | . 147 654 . . . . . . . . . . . . . . . . . . . . Robot Analysis Total 2 | . 1 . 1 . . . . . . . . . . . . . . . . . . . Derelict Logs Recovered 1 | . . 1 . . . . . . . . . . . . . . . . . . . . Drone Launches 139 | . . . . . . . . . . . 1 58 . 34 . . . 46 . . . . Drone Recoveries 109 | . . . . . . . . . . . 1 54 . 27 . . . 27 . . . . Exploration | -11 -10 -10 -9 -9 -9 -8 -8 -8 -8 -8 -7 -7 -6 -6 -5 -5 -5 -5 -5 -5 -4 -4 ------------- Run | Yrd Mat Min Mat Min Exi Min Mat Gar Mat Gar Fac Gar Fac Gar Fac Was Fac Gar Fac Gar Fac Gar Turns Passed 15489 | 92 344 771 1352 158 485 31 1696 1148 201 1230 976 1182 105 738 325 589 224 1725 334 1373 247 163 Spaces Moved 8498 | 68 242 444 714 138 397 15 918 565 111 723 595 577 58 309 162 299 111 823 192 802 150 85 Core 5 | 3 . . 2 . . . . . . . . . . . . . . . . . . . Treads . | . . . . . . . . . . . . . . . . . . . . . . . Legs . | . . . . . . . . . . . . . . . . . . . . . . . Wheels 8493 | 65 242 444 712 138 397 15 918 565 111 723 595 577 58 309 162 299 111 823 192 802 150 85 Hover . | . . . . . . . . . . . . . . . . . . . . . . . Flight . | . . . . . . . . . . . . . . . . . . . . . . . Fastest Speed 50 | 50 80 135 110 110 110 125 120 120 130 130 120 120 180 180 195 180 180 135 135 105 135 135 Average Speed 143 | 88 102 144 121 110 113 125 120 126 130 140 131 172 180 191 195 187 194 185 136 135 135 135 Slowest Speed 400 | 100 135 215 400 110 125 125 125 150 130 145 155 180 180 195 195 195 195 195 150 150 135 135 Overloaded Moves . | . . . . . . . . . . . . . . . . . . . . . . . Propulsion Burnouts . | . . . . . . . . . . . . . . . . . . . . . . . Robots Hopped . | . . . . . . . . . . . . . . . . . . . . . . . Potential Cave-ins . | . . . . . . . . . . . . . . . . . . . . . . . Cave-ins Triggered . | . . . . . . . . . . . . . . . . . . . . . . . Exploration Rate (%) 45 | 4 51 88 57 26 67 6 73 77 19 87 40 91 1 48 5 87 6 95 4 89 5 19 Regions Visited 22 Branch Regions 4 Pre-discovered Areas 2 | . . 1 . . 1 . . . . . . . . . . . . . . . . . Known Exits Taken 7 | . . . . . . . 1 . 1 . 1 . 1 . . . 1 . 1 . 1 . Unknown Exits Taken 7 | 1 1 1 1 1 1 1 . . . . . . . . . . . . . . . . Scrap Searched 2 | . . 1 . 1 . . . . . . . . . . . . . . . . . . Spaces Dug 44 | . 4 . 9 . . . 20 . . 9 . . . . . . . . . 2 . . Terrain Destroyed 261 | . 24 26 23 . . . 134 2 1 20 3 . . 14 . . . 5 . 9 . . Melee . | . . . . . . . . . . . . . . . . . . . . . . . Projectile 34 | . . . . . . . . 2 1 3 . . . 14 . . . 5 . 9 . . AOE 227 | . 24 26 23 . . . 134 . . 17 3 . . . . . . . . . . . Terrain Rammed . | . . . . . . . . . . . . . . . . . . . . . . . Walls Destroyed . | . . . . . . . . . . . . . . . . . . . . . . . Machines Disabled . | . . . . . . . . . . . . . . . . . . . . . . . Actions | -11 -10 -10 -9 -9 -9 -8 -8 -8 -8 -8 -7 -7 -6 -6 -5 -5 -5 -5 -5 -5 -4 -4 --------- Run | Yrd Mat Min Mat Min Exi Min Mat Gar Mat Gar Fac Gar Fac Gar Fac Was Fac Gar Fac Gar Fac Gar Total 10568 | 82 291 505 962 144 432 27 1333 814 136 841 717 729 58 411 174 321 118 952 262 971 178 110 Wait 650 | . 4 . 56 6 11 13 260 33 . 26 24 74 . 15 . 9 . 26 61 29 2 1 Move 8482 | 67 241 443 713 137 396 14 917 564 110 722 595 576 58 308 162 298 111 823 191 801 150 85 Hop . | . . . . . . . . . . . . . . . . . . . . . . . Pick Up 131 | 2 8 7 30 1 5 . 12 5 1 6 11 10 . 4 3 . 1 7 3 11 4 . Fast Attach 75 | 6 1 4 6 . 2 . 11 2 2 1 9 2 . 3 2 . 2 6 2 11 3 . Attach 54 | . 1 5 14 . . . 2 1 1 3 7 3 . 2 . . . 7 . 4 1 3 Detach 3 | . . . . . . . . 1 . . 1 1 . . . . . . . . . . Swap 97 | . 11 4 14 . 2 . 14 11 2 6 8 2 . 3 1 2 . 7 1 7 1 1 Drop 129 | . 2 . 8 . 12 . 19 8 4 5 18 14 . 6 5 1 3 12 2 4 5 1 Fire 762 | 7 23 42 121 . . . 98 126 16 64 44 15 . 33 1 11 1 56 2 71 12 19 Melee 4 | . . . . . 4 . . . . . . . . . . . . . . . . . Ram . | . . . . . . . . . . . . . . . . . . . . . . . Kick . | . . . . . . . . . . . . . . . . . . . . . . . Crush . | . . . . . . . . . . . . . . . . . . . . . . . Escape Stasis 112 | . . . . . . . . 32 . 8 . 24 . 16 . . . 8 . 24 . . Rewire 52 | . . . . . . . . 31 . . . . . 21 . . . . . . . . Trap 1 | . . . . . . . . . . . . . . . . . . . . 1 . . Miscellaneous 16 | . . . . . . . . . . . . 8 . . . . . . . 8 . . Route ------- -11/Scrapyard -10/Materials (discovered 2 exits: *Mat / [*Min]) -10/Mines (discovered 2 exits: *Mat x2) -9/Materials (discovered 3 exits: *Mat x2 / [*Min]) -9/Mines -9/Exiles -8/Mines -8/Materials (discovered 2 exits: *Fac / Gar) -8/Garrison (discovered 4 exits: *Mat x4) -8/Materials -8/Garrison (discovered 3 exits: *Fac x3) -7/Factory (discovered 5 exits: *Fac x2 / [*Sto x2] / Gar) -7/Garrison (discovered 3 exits: *Fac x3) -6/Factory -6/Garrison (discovered 3 exits: *Fac x3) -5/Factory -5/Waste -5/Factory -5/Garrison (discovered 3 exits: *Fac x3) -5/Factory -5/Garrison (discovered 3 exits: *Fac x3) -4/Factory -4/Garrison (discovered 4 exits: [Fac x4]) History --------- Turn | Location | Event 20 | -11/Scrapyard | Discovered new exit (range 15) 93 | -11/Scrapyard | Entered Materials 149 | -10/Materials | Central database locked down 322 | -10/Materials | Build established: Mutant 329 | -10/Materials | Discovered new exit (range 13) 407 | -10/Materials | Discovered new exit (range 6) 437 | -10/Materials | Entered Mines 591 | -10/Mines | Received a Rocket Launcher from a helpful Derelict 618 | -10/Mines | Learned location of Storage (-7) 933 | -10/Mines | Discovered new exit (range 8) 940 | -10/Mines | Discovered new exit (range 10) 944 | -10/Mines | Learned 4 Materials zone layouts 995 | -10/Mines | Core integrity fell below 50% 1005 | -10/Mines | Core integrity fell below 20% 1050 | -10/Mines | Lost 5 parts (1p3n1w) 1208 | -10/Mines | Entered Materials 1208 | -9/Materials | Evolved 2 slots: Utility x2 1425 | -9/Materials | Repaired Lgt. Cannon 1454 | -9/Materials | Repaired Lgt. Cannon 1530 | -9/Materials | Discovered new exit (range 3) 1543 | -9/Materials | Build established: Scavenger-Mutant 1647 | -9/Materials | Lost 10 parts (1p4n1u4w) 1724 | -9/Materials | Discovered new exit (range 8) 1951 | -9/Materials | Central database locked down 2041 | -9/Materials | Core integrity fell below 50% 2086 | -9/Materials | Discovered new exit (range 3) 2560 | -9/Materials | Entered Mines 2591 | -9/Mines | Assisted by bots powering up and referring to "LRC-V3" 2609 | -9/Mines | Met a Derelict bent on vengeance 2618 | -9/Mines | Found a damaged Exp. Sensor Array with a note attached 2622 | -9/Mines | Found Prototype Device 2707 | -9/Mines | Deemed a non-threat by the Exiles lab entrance 2707 | -9/Mines | Discovered new exit (range 5) 2718 | -9/Mines | Entered Exiles 2718 | -9/Exiles | Accompanied by 3 allies 2746 | -9/Exiles | Met 8R-AWN 2773 | -9/Exiles | Met EX-HEX 2805 | -9/Exiles | Met EX-BIN 2826 | -9/Exiles | Aligned with FarCom system 2827 | -9/Exiles | Given EX-Vault access code 2852 | -9/Exiles | Opened EX-Vault 2870 | -9/Exiles | Found Trap Reconfigurator 2874 | -9/Exiles | Found Army-in-a-Box 2879 | -9/Exiles | Found Supersonic Drone Bay 2902 | -9/Exiles | Warned to stay clear of 0b10 Research branches 2930 | -9/Exiles | Met EX-DEC 2961 | -9/Exiles | Learned location of Zion (-7) 3178 | -9/Exiles | Discovered new exit (range 14) 3203 | -9/Exiles | Stole three prototypes: Trap Reconfigurator, Supersonic Drone Bay, Army-in-a-Box 3203 | -9/Exiles | Entered Mines 3203 | -8/Mines | Accompanied by 3 allies 3206 | -8/Mines | Discovered new exit (range 11) 3234 | -8/Mines | Entered Materials 3234 | -8/Materials | Accompanied by 3 allies 3234 | -8/Materials | Evolved 2 slots: Utility x2 3365 | -8/Materials | Build established: Mutant 3735 | -8/Materials | Repaired Hvy. Ion Engine 3942 | -8/Materials | Discovered new exit (range 17) 4323 | -8/Materials | System Shield fried by hacking feedback 4657 | -8/Materials | Destroyed 7 combat bots 4658 | -8/Materials | Central database locked down 4913 | -8/Materials | Identified exit to Garrison 4930 | -8/Materials | Entered Garrison 4944 | -8/Garrison | Triggered checkpoint 5171 | -8/Garrison | Triggered checkpoint 5172 | -8/Garrison | Triggered checkpoint 5198 | -8/Garrison | Triggered checkpoint 5302 | -8/Garrison | Triggered checkpoint 5373 | -8/Garrison | Discovered new exit (range 13) 5414 | -8/Garrison | Triggered checkpoint 5727 | -8/Garrison | Discovered new exit (range 14) 5780 | -8/Garrison | Triggered checkpoint 5824 | -8/Garrison | Discovered new exit (range 32) 5824 | -8/Garrison | Discovered new exit (range 70) 5824 | -8/Garrison | Discovered new exit (range 62) 5824 | -8/Garrison | Discovered new exit (range 51) 5952 | -8/Garrison | Triggered checkpoint 5975 | -8/Garrison | Installed Relay Interface Framework 6020 | -8/Garrison | Triggered checkpoint 6078 | -8/Garrison | Entered Materials 6078 | -8/Materials | Accompanied by 3 allies 6266 | -8/Materials | Identified exit to Garrison 6279 | -8/Materials | Entered Garrison 6279 | -8/Garrison | Accompanied by 2 allies 6361 | -8/Garrison | Triggered checkpoint 6440 | -8/Garrison | Expanded RIF knowledge: Structural Interface 6515 | -8/Garrison | Build established: Scavenger-Mutant 6517 | -8/Garrison | Triggered checkpoint 6588 | -8/Garrison | Core integrity fell below 50% 6749 | -8/Garrison | Discovered new exit (range 11) 6891 | -8/Garrison | Triggered checkpoint 6957 | -8/Garrison | Expanded RIF knowledge: Patrol Navigation 7076 | -8/Garrison | Discovered new exit (range 10) 7283 | -8/Garrison | Discovered new exit (range 15) 7446 | -8/Garrison | Garrison Relay disabled 7509 | -8/Garrison | Entered Factory 7509 | -7/Factory | Evolved 2 slots: Utility x2 7511 | -7/Factory | FarCom data flow suspended 7617 | -7/Factory | Discovered new exit (range 9) 7681 | -7/Factory | Discovered new exit (range 62) 7688 | -7/Factory | Discovered new exit (range 71) 7700 | -7/Factory | Discovered new exit (range 148) 7850 | -7/Factory | Garrison activated, responded to threat 8169 | -7/Factory | Build established: Mutant 8485 | -7/Factory | Identified exit to Garrison 8485 | -7/Factory | Entered Garrison 8527 | -7/Garrison | Triggered checkpoint 8755 | -7/Garrison | Triggered checkpoint 8769 | -7/Garrison | Triggered checkpoint 8785 | -7/Garrison | Triggered checkpoint 8799 | -7/Garrison | Triggered checkpoint 8896 | -7/Garrison | Discovered new exit (range 9) 8919 | -7/Garrison | Triggered checkpoint 8978 | -7/Garrison | Build established: Bothacker-Mutant 9065 | -7/Garrison | Discovered new exit (range 9) 9191 | -7/Garrison | Triggered checkpoint 9295 | -7/Garrison | Rescued a captive Derelict 9296 | -7/Garrison | Rescued a captive Derelict 9476 | -7/Garrison | Discovered new exit (range 3) 9531 | -7/Garrison | Expanded RIF knowledge: Threat Obfuscation 9557 | -7/Garrison | Triggered checkpoint 9667 | -7/Garrison | Entered Factory 9667 | -6/Factory | Accompanied by 2 allies 9667 | -6/Factory | Evolved 2 slots: Utility x1, Weapon x1 9772 | -6/Factory | Identified exit to Garrison 9772 | -6/Factory | Entered Garrison 9772 | -6/Garrison | Accompanied by 2 allies 9848 | -6/Garrison | Spotted B-75 Beast 9858 | -6/Garrison | Triggered checkpoint 9866 | -6/Garrison | Triggered checkpoint 9870 | -6/Garrison | Allies destroyed B-75 Beast 9906 | -6/Garrison | Lost 5 allies 9974 | -6/Garrison | Triggered checkpoint 10001 | -6/Garrison | Spotted Executioner 10016 | -6/Garrison | Garrison Relay disabled 10025 | -6/Garrison | Allies destroyed Executioner 10035 | -6/Garrison | Found Prototype Device 10035 | -6/Garrison | Identified Adv. Kinecellerator 10064 | -6/Garrison | Rewired Executioner 10116 | -6/Garrison | Discovered new exit (range 73) 10116 | -6/Garrison | Discovered new exit (range 39) 10116 | -6/Garrison | Discovered new exit (range 79) 10312 | -6/Garrison | Triggered checkpoint 10374 | -6/Garrison | Triggered checkpoint 10457 | -6/Garrison | Found Exp. Core Analyzer 10483 | -6/Garrison | Build established: Bothacker-Tank 10490 | -6/Garrison | Triggered checkpoint 10510 | -6/Garrison | Entered Factory 10510 | -5/Factory | Evolved 2 slots: Power x1, Utility x1 10835 | -5/Factory | Sucked down chute 10835 | -5/Factory | Entered Waste 10836 | -5/Waste | Met a frightened Derelict 10849 | -5/Waste | Spotted C-40 Crusher 10856 | -5/Waste | Spotted C-40 Crusher 10937 | -5/Waste | Spotted C-40 Crusher 10950 | -5/Waste | Spotted C-40 Crusher 10953 | -5/Waste | Spotted C-40 Crusher 10974 | -5/Waste | Spotted C-40 Crusher 11000 | -5/Waste | Discovered new exit (range 13) 11033 | -5/Waste | Warlord forces began an assault 11042 | -5/Waste | Allies destroyed C-40 Crusher 11114 | -5/Waste | Allies destroyed C-40 Crusher 11144 | -5/Waste | Lost 3 allies 11161 | -5/Waste | Build established: Bothacker-Skirmisher 11162 | -5/Waste | Allies destroyed C-40 Crusher 11176 | -5/Waste | Allies destroyed C-40 Crusher 11206 | -5/Waste | Lost 5 allies 11424 | -5/Waste | Entered Factory 11424 | -5/Factory | Accompanied by 11 allies 11613 | -5/Factory | Garrison activated, responded to threat 11648 | -5/Factory | Identified exit to Garrison 11648 | -5/Factory | Entered Garrison 11648 | -5/Garrison | Accompanied by 11 allies 11722 | -5/Garrison | Triggered checkpoint 11892 | -5/Garrison | Triggered checkpoint 11911 | -5/Garrison | Spotted B-75 Beast 11926 | -5/Garrison | Allies destroyed B-75 Beast 11957 | -5/Garrison | Lost 3 allies 12013 | -5/Garrison | Spotted B-75 Beast 12018 | -5/Garrison | Triggered checkpoint 12031 | -5/Garrison | Allies destroyed B-75 Beast 12054 | -5/Garrison | Triggered checkpoint 12062 | -5/Garrison | Triggered checkpoint 12074 | -5/Garrison | Triggered checkpoint 12085 | -5/Garrison | Lost 7 allies 12140 | -5/Garrison | Triggered checkpoint 12172 | -5/Garrison | Expanded RIF knowledge: Autooverride 12256 | -5/Garrison | Garrison Relay disabled 12310 | -5/Garrison | Discovered new exit (range 15) 12356 | -5/Garrison | Spotted B-75 Beast 12372 | -5/Garrison | Allies destroyed B-75 Beast 12395 | -5/Garrison | Found Relay Coupler [Proto] 12396 | -5/Garrison | Lost 6 allies 12398 | -5/Garrison | Found Relay Coupler [Proto] 12403 | -5/Garrison | Found Relay Coupler [Proto] 12556 | -5/Garrison | Build established: Botlord-Skirmisher 12572 | -5/Garrison | Triggered checkpoint 12650 | -5/Garrison | Lost 3 allies 12822 | -5/Garrison | Triggered checkpoint 12823 | -5/Garrison | Discovered new exit (range 17) 12970 | -5/Garrison | Spotted B-75 Beast 13027 | -5/Garrison | Lost 5 allies 13041 | -5/Garrison | Rewired B-75 Beast 13044 | -5/Garrison | Rewired B-86 Titan 13062 | -5/Garrison | Allies destroyed B-75 Beast 13195 | -5/Garrison | Discovered new exit (range 12) 13333 | -5/Garrison | Build established: Botlord-Tank 13373 | -5/Garrison | Entered Factory 13373 | -5/Factory | Accompanied by 2 allies 13523 | -5/Factory | Repaired Helical Railgun 13700 | -5/Factory | Identified exit to Garrison 13707 | -5/Factory | Entered Garrison 13707 | -5/Garrison | Accompanied by 4 allies 13753 | -5/Garrison | Triggered checkpoint 13945 | -5/Garrison | Spotted B-75 Beast 13979 | -5/Garrison | Triggered checkpoint 13999 | -5/Garrison | Destroyed B-75 Beast 14017 | -5/Garrison | Lost 6 allies 14183 | -5/Garrison | Discovered new exit (range 13) 14317 | -5/Garrison | Expanded RIF knowledge: Zone Cloak 14392 | -5/Garrison | Triggered checkpoint 14459 | -5/Garrison | Triggered checkpoint 14505 | -5/Garrison | Garrison Relay disabled 14584 | -5/Garrison | Garrison Relay disabled 14617 | -5/Garrison | Found embedded Infiltrators 14704 | -5/Garrison | Discovered new exit (range 9) 14855 | -5/Garrison | Triggered checkpoint 14871 | -5/Garrison | Discovered new exit (range 12) 14936 | -5/Garrison | Garrison Relay disabled 15080 | -5/Garrison | Entered Factory 15080 | -4/Factory | Accompanied by 2 allies 15080 | -4/Factory | Evolved 2 slots: Utility x2 15177 | -4/Factory | Identified Exp. Sensor Array 15215 | -4/Factory | Garrison activated, responded to threat 15271 | -4/Factory | Lost 3 allies 15327 | -4/Factory | Identified exit to Garrison 15327 | -4/Factory | Entered Garrison 15381 | -4/Garrison | Discovered new exit (range 68) 15381 | -4/Garrison | Discovered new exit (range 33) 15381 | -4/Garrison | Discovered new exit (range 55) 15381 | -4/Garrison | Discovered new exit (range 17) 15439 | -4/Garrison | Spotted B-86 Titan 15443 | -4/Garrison | Triggered checkpoint 15447 | -4/Garrison | Triggered checkpoint 15464 | -4/Garrison | Triggered checkpoint 15490 | -4/Garrison | Self-destructed Last Messages --------------- 15469_ H-77 Assassin suffers critical hit (Burn). 15470_ H-77 Assassin heat spikes uncontrollably. 15473_ H-77 Assassin heat damages Myomer Leg. 15473_ Penetrated by Slug. 15473_ Slug penetrates Wall. 15474_ H-77 Assassin heat short circuits Coil Gun. 15475_ H-77 Assassin critical meltdown. 15475_ Imp. Targeting Computer melted. 15475_ Switching to secondary target: B-86 Titan. 15476_ Arm. Huge Wheel+ destroyed. 15476_ Imp. Trap Scanner destroyed. 15479_ B-86 Titan exits siege mode. 15482_ Enh. Fission Core destroyed. 15482_ Relay Coupler [Swarmer] destroyed. 15482_ Critical hit (Blast). 15482_ Penetrated by Slug. 15484_ Relay Coupler [Grunt] destroyed. 15485_ X-77 Beamer knocked back. 15485_ Slug penetrates Wall. 15488_ X-77 Beamer destroyed. Map ----- +----------------------------------------------------+ | ????????????????????????????#" #???????????????? | | ????????????????????????????#" #???????????????? | | ????????#######????####?????#"# #???????????????? | | ####????#!! !!#????#""#?????### #???????????????? | | ######! !#????#T #???????# #???????????????? | | + +! !#????#" #???????# #???????????????? | | # ######! !#????## #?????### #???????????????? | | # #????### ###?????# ####### " #???????????????? | | # #??????# #???????# # + " #???????????????? | | # #??????# #???????# # ##### " #???????????????? | | # #??????# #???????# # #???### #???????????????? | | # #??????# #???????# #+####### ################# | | # ########+##??????# | | #??????# | | # #??????# | | # ######## #??????# #####T#++################# | | #^^######## #??????#^^^#???### #???????????????? | | # ## + #??????# #?????# #???????????????? | | # ## ##### #??????# ####### !#???????????????? | | + + #???# #??????# + #???????????????? | | #^^## #???# ######## ####### #???????????????? | | #^^## #???# ## ## #?????# #???????????????? | | # ## #??## # ## #?????# #???????????????? | | # ##+#### ####### #???????????????? | | # =! %%= %;% #???????????????? | | !%[ [ [*;@ % #???????????????? | | ########## # BB ;=g%##########???????????????? | | ???????### #; BB # ###??????????????????????? | | ???????# " ^^ " #??????????????????????? | | ???????# " ^^ " #??????????????????????? | | ???????# " " ####???????????????????? | | ???????# " " + #?????????###??????## | | ???????### ## ## #### #?????????# #??????# | | ########## ## ## #??# #???????###+###????# | | #### #######?#!! !!#????# | | + #?#!! !!#????# | | ########## ### ###### | | ########+###""""## #????????# +^ ^+ + | | #??????# #?# ## #????????# ### ### ### | | ######## #?####### #????????# #?#!! !!#?# #?? | | + #???????# #????????# #?#!! !!#?# #?? | | ##### ####???????# #????????# #?###+###?# #?? | | #???# #??????????# ########## #???# #???# #?? | | #???# #??????????# + #???###???# #?? | | #???# #??????????# ###### ### #?????????# #?? | | #???# #??????????# #????# #?# #?????????# #?? | | #???# #??????????# #????# #?# #?????????# #?? | | #???# #??????????# ###### ###+###########+### | | #???# #??????????# ^ | | #???# #??????????# ^ | +----------------------------------------------------+ Best States ------------- Heat Dissipation 74 Coolant Potential 130 Energy Generation 43 Energy Capacity 440 Matter Stores 300 Matter Capacity 300 Sight Range 18 Robot Scan Range 20 Terrain Scan Density 10 ECM Strength 1 Additional Mass Support 12 Armor Coverage 600 Resistance: TH 15 Resistance: EM 15 Evasion (%) 44 Offensive Hacking 10 Defensive Hacking 10 Relay Coupler Types 5 Relay Coupler Value 107 Authchip Count 2 Trap Extractor Capacity 6 Item Schematics ----------------- Hacking Suite | -9/Materials | Scanalyzed System Shield | -8/Materials | Scanalyzed Wheel | -8/Materials | Scanalyzed Spread Laser | -8/Materials | Scanalyzed Helical Railgun | -4/Factory | Scanalyzed Robot Schematics ------------------ None Fabricated ------------ Nothing Repaired ---------- Lgt. Cannon | 37% | -9/Materials Lgt. Cannon | 73% | -9/Materials Hvy. Ion Engine | 60% | -8/Materials Helical Railgun | 64% | -5/Factory Studied --------- Wheel | -9/Materials | Hacked Arm. Wheel | -8/Materials | Hacked Arm. Huge Wheel | -7/Factory | Hacked Alien Tech Used ----------------- None Achievements -------------- None Challenges ------------ None Game ------ Seed IonThermoelectricInsulator Manual? 0 Play Time 02:00:37 Cumulative 388.8 hours Start 2025.12.07 @ 19:16:38 End 2025.12.07 @ 21:37:05 Sessions 1 Manual Loads 0 Difficulty Rogue Special Mode None Game No. 399 Rogue 395 Adventurer 3 Explorer 1 Win Type - Total 5 Types 4/0/1/0/0/0/0/0/0/0 Lore% 85 Gallery% 80 Achievement% 68 Wizard Run 0 Options --------- Layout 0 ASCII 0 Keyboard 0 Movement Mouse Keybinds 0 Fullscreen 2 Font 18/SmallcapsGlow Map View 76x50 Zoom Use 0% Tactical HUD 1 Map Filters NONE Filters NONE Steam 1 RUN: 2e65e43c-1e7d-47bf-ae75-ed6432765658